[Event "Austrian Bundesliga 2023-24"]
[Site "Austria"]
[Date "2024.03.23"]
[Round "10.2"]
[White "Blohberger, Felix"]
[Black "Handler, Lukas"]
[Result "0-1"]
[ECO "D11"]
[WhiteElo "2531"]
[BlackElo "2436"]
[Annotator "TA"]
[PlyCount "58"]
[EventDate "2023.10.21"]
[EventType "team-tourn"]
[EventCountry "AUT"]
[SourceTitle "playchess.com"]
[Source "ChessBase"]
[SourceQuality "1"]
[TimeControl "40/5400+30:1800+30"]

{[%evp 9,58,11,45,34,34,18,22,6,8,6,18,11,20,6,22,35,47,39,47,33,37,23,50,38,47,0,0,0,0,0,0,0,0,0,7,0,6,0,0,0,0,0,10,0,0,0,0,0,0,-329,-330]} 1. d4 {[%emt 0:00:04]} d5 {[%emt 0:00:04]} 2. c4 {[%emt 0:00:06]} c6 {[%emt 0:00:05]} 3. Nf3 {[%emt 0:00:06]} Nf6 {[%emt 0:00:06]} 4. e3 {[%emt 0:00:04]} e6 {[%emt 0:00:12]} 5. b3 {[%emt 0:00:27]} Ne4 {[%emt 0:06:23]} 6. Bd3 {[%emt 0:00:14]} Bb4+ {[%emt 0:02:14]} 7. Nfd2 {[%emt 0:02:16]} f5 {[%emt 0:04:35]} 8. Qh5+ {[%emt 0:00:56] The position is equal.} g6 {[%emt 0:05:19]} 9. Qe2 {[%emt 0:00:09]} O-O {[%emt 0:07:26]} 10. O-O {[%emt 0:00:29]} Nd7 {[%emt 0:03:04]} 11. Bb2 {[%emt 0:02:20]} Ndf6 {[%emt 0:05:33]} 12. f3 {[%emt 0:07:10]} Nxd2 {[%emt 0:01:44]} 13. Nxd2 {[%emt 0:00:42]} Bd7 {[%emt 0:03:15]} 14. a3 {[%emt 0:09:22]} Bd6 {[%emt 0:09:13]} 15. b4 {[%emt 0:31:08]} a5 {[%emt 0:15:26]} 16. c5 {[%emt 0:07:39]} Bc7 {[%emt 0:01:30]} 17. b5 {[%emt 0:06:31]} (17. g3 $14) 17... cxb5 $11 {[%emt 0:02:39]} 18. Bxb5 {[%emt 0:00:50]} Bxb5 {[%emt 0:03:20]} 19. Qxb5 {[%emt 0:00:11][%cal Oa3a4]} b6 20. cxb6 {[%emt 0:04:50]} Bxb6 {[%emt 0:07:32]} 21. a4 {[%emt 0:09:52]} Rb8 {[%emt 0:02:29] [#] White must now prevent ...Bc7.} 22. Qd3 {[%emt 0:03:02]} Qd7 {[%emt 0:03:09]} 23. Nb3 {[%emt 0:02:29]} Rfc8 {[%emt 0:01:00]} 24. Rfc1 {[%emt 0:02:13]} Ne8 {[%emt 0:02:02]} 25. Rxc8 {[%emt 0:02:45]} Qxc8 {[%emt 0:00:09]} 26. Ba3 {[%emt 0:02:11]} Qc6 {[%emt 0:01:37]} 27. Bc5 {[%emt 0:02:16]} Bc7 {[%emt 0:01:59]} 28. Qc3 {[%emt 0:00:43]} Ra8 {[%emt 0:05:20]} 29. Bb4 $2 {[%emt 0:01:40][%mdl 8192] [#]} Qc4 {[%emt 0:02:04] Weighted Error Value: White=0.30/Black=0.04 (flawless) .  Loses game:     	White=1     	---        Mistake:       	White=1     	---        Inaccurate:     	---       	Black=1      OK:         	White=8     	Black=12     Best:        	---       	Black=3} 0-1

[Event "Austrian Bundesliga 2023-24"]
[Site "Austria"]
[Date "2024.03.23"]
[Round "10.3"]
[White "Halvax, Georg"]
[Black "Peyrer, Konstantin"]
[Result "1/2-1/2"]
[ECO "E10"]
[WhiteElo "2452"]
[BlackElo "2434"]
[Annotator "RC"]
[PlyCount "61"]
[EventDate "2023.10.21"]
[EventType "team-tourn"]
[EventCountry "AUT"]
[SourceTitle "playchess.com"]
[Source "ChessBase"]
[SourceQuality "1"]
[TimeControl "40/5400+30:1800+30"]

1. d4 {[%emt 0:00:04]} Nf6 {[%emt 0:00:05]} 2. c4 {[%emt 0:00:11]} e6 {[%emt 0:00:06]} 3. Nf3 {[%emt 0:00:08]} d5 {[%emt 0:00:06]} 4. e3 {[%emt 0:03:54]} b6 {[%emt 0:00:50]} 5. Bd3 {[%emt 0:01:57]} Bb7 {[%emt 0:02:54]} 6. O-O {[%emt 0:00:24]} Nbd7 {[%emt 0:01:02]} 7. Nc3 {[%emt 0:00:21]} a6 {[%emt 0:01:27]} 8. b3 {[%emt 0:02:05]} Bd6 {[%emt 0:00:14]} 9. Bb2 {[%emt 0:01:20]} O-O {[%emt 0:01:34]} 10. Re1 {[%emt 0:06:57]} c5 {[%emt 0:03:37]} 11. cxd5 {[%emt 0:03:42]} exd5 {[%emt 0:00:11]} 12. e4 {[%emt 0:03:18]} dxe4 {[%emt 0:16:42]} 13. Nxe4 {[%emt 0:01:20]} Be7 {[%emt 0:00:14]} 14. Rc1 {[%emt 0:22:24]} Rc8 {[%emt 0:07:37]} 15. Ng3 {[%emt 0:07:06]} Re8 {[%emt 0:12:27]} 16. Bf5 {[%emt 0:04:44]} Rc7 {[%emt 0:08:00]} 17. dxc5 {[%emt 0:05:18]} Rxc5 {[%emt 0:00:33]} 18. Ng5 {[%emt 0:16:52]} h6 {[%emt 0:07:24]} 19. Rxc5 {[%emt 0:07:03]} Bxc5 {[%emt 0:03:01]} 20. N5e4 {[%emt 0:01:07]} Nxe4 {[%emt 0:01:27]} 21. Nxe4 {[%emt 0:03:07]} Bxe4 {[%emt 0:01:15]} 22. Bxe4 {[%emt 0:03:29]} Nf6 {[%emt 0:00:19]} 23. Bf3 {[%emt 0:01:22]} Qxd1 {[%emt 0:00:07]} 24. Rxd1 {[%emt 0:00:08]} Ne4 {[%emt 0:00:13]} 25. Bxe4 {[%emt 0:02:04]} Rxe4 {[%emt 0:00:10]} 26. Kf1 {[%emt 0:00:06]} f6 {[%emt 0:02:00]} 27. Re1 {[%emt 0:00:20]} Rxe1+ {[%emt 0:00:05]} 28. Kxe1 {[%emt 0:00:03]} Kf7 {[%emt 0:00:08]} 29. Ke2 {[%emt 0:00:19]} h5 {[%emt 0:00:25]} 30. h3 {[%emt 0:00:16]} Ke6 {[%emt 0:00:06]} 31. g4 {[%emt 0:00:20]} 1/2-1/2

[Event "Austrian Bundesliga 2023-24"]
[Site "Austria"]
[Date "2024.03.23"]
[Round "10.4"]
[White "Froewis, Georg"]
[Black "Kreisl, Robert"]
[Result "1-0"]
[ECO "A13"]
[WhiteElo "2450"]
[BlackElo "2260"]
[Annotator "TA"]
[PlyCount "97"]
[EventDate "2023.10.21"]
[EventType "team-tourn"]
[EventCountry "AUT"]
[SourceTitle "playchess.com"]
[Source "ChessBase"]
[SourceQuality "1"]
[TimeControl "40/5400+30:1800+30"]

{[%evp 25,97,0,0,0,0,-11,-2,-5,-6,-7,0,0,0,0,0,-11,0,0,0,0,0,0,0,-87,-26,-28,-23,-41,-33,-58,-28,-55,0,-20,0,-47,0,-31,-18,-46,-34,-71,-35,-50,0,-36,-25,-28,-39,-24,0,0,29,29,47,47,76,67,629,616,989,1004,901,782,29982,1431,1349,539,535,512,2415,614,624,611]} 1. c4 {[%emt 0:00:04]} e6 {[%emt 0:00:09]} 2. Nc3 {[%emt 0:00:12]} d5 {[%emt 0:00:10]} 3. e3 {[%emt 0:00:05]} Nf6 {[%emt 0:00:16]} 4. Nf3 {[%emt 0:00:04]} dxc4 {[%emt 0:01:41]} 5. Bxc4 {[%emt 0:00:08]} a6 {[%emt 0:10:54]} 6. a4 {[%emt 0:01:23]} c5 {[%emt 0:07:15]} 7. O-O {[%emt 0:00:15]} Nc6 {[%emt 0:00:17]} 8. Qe2 {[%emt 0:01:44]} Be7 {[%emt 0:00:40]} 9. Rd1 {[%emt 0:00:05]} O-O {[%emt 0:00:12]} 10. d4 {[%emt 0:00:04]} cxd4 {[%emt 0:01:38]} 11. exd4 {[%emt 0:00:05]} Nb4 {[%emt 0:01:13]} 12. Ne5 {[%emt 0:00:54]} Bd7 {[%emt 0:05:41]} 13. Bg5 {[%emt 0:00:35]} Bc6 {[%emt 0:17:08]} 14. Nxc6 {[%emt 0:12:24]} bxc6 {[%emt 0:00:30]} 15. Na2 {[%emt 0:03:14]} Nfd5 {[%emt 0:12:58][%cal Bf6d5,Bd5b4,Bb4c2][%mdl 32]} 16. Nxb4 {[%emt 0:00:10] Die Stellung ist ausgeglichen.} Nxb4 {[%emt 0:00:05]} 17. Bd2 {[%emt 0:02:19]} Nc2 {[%emt 0:12:19]} 18. Rac1 {[%emt 0:00:20][%cal Ba1c1,Bc1c3,Bc3h3][%mdl 32]} Nxd4 {[%emt 0:00:07]} 19. Qe4 {[%emt 0:03:50] Und Bc3 würde nun gewinnen.} a5 {[%emt 0:02:18]} 20. Rc3 {[%emt 0:22:53]} c5 {[%emt 0:10:53]} 21. Rh3 {[%emt 0:00:07][%csl Gh3][%cal Re4h7]} f5 {[%emt 0:00:23]} 22. Qe1 {[%emt 0:09:47]} (22. Bxe6+ Kh8 23. Qe1 Nxe6) 22... Kh8 {[%emt 0:01:26]} 23. Bc3 {[%emt 0:04:05][%cal Oc3d4]} Bf6 {[%emt 0:01:49]} 24. Rdd3 {[%emt 0:09:58]} (24. Bxe6 $11 Qe8 25. Bc4 Qxa4 26. Qf1) 24... Re8 {[%emt 0:07:40]} (24... e5 $17 25. f3 Qe7) 25. Qd1 $11 {[%emt 0:02:51]} g6 {[%emt 0:00:26] Verhindert Qh5.} 26. f4 {[%emt 0:01:24]} Qc7 {[%emt 0:01:01]} 27. Qd2 {[%emt 0:05:09]} Bg7 {[%emt 0:01:27]} 28. Qf2 {[%emt 0:01:05]} Bf6 {[%emt 0:02:16]} ({Besser ist} 28... h5 $15 29. Rhe3 Kh7) 29. Rhe3 {[%emt 0:03:35]} Bg7 {[%emt 0:00:45]} 30. Rh3 {[%emt 0:07:11]} Bf6 {[%emt 0:00:05]} (30... h5 $15 {war vorzuziehen.} 31. Rhe3 Kh7) 31. Rde3 {[%emt 0:01:12]} Qd8 {[%emt 0:01:35]} 32. Qe1 {[%emt 0:02:16][%cal Rc4e6]} Ra7 {[%emt 0:00:28]} 33. Rd3 {[%emt 0:02:35]} Qc7 {[%emt 0:00:40]} 34. Qd2 {[%emt 0:01:25]} Qd8 {[%emt 0:00:10]} (34... h5 $15) 35. Rhe3 {[%emt 0:00:26][%cal Oe3e6]} Qd6 {[%emt 0:00:45]} 36. Re1 {[%emt 0:02:17]} Qb6 {[%emt 0:00:29]} 37. Kh1 {[%emt 0:00:35]} Bg7 {[%emt 0:00:33]} (37... h6 {vereinfacht} 38. Rde3 Kg7 39. Bxd4 Bxd4 40. Rxe6 Rxe6 41. Rxe6 Qxb2 42. Qxb2 Bxb2 43. g3 Rd7) 38. Rde3 {[%emt 0:00:32]} Qc7 {[%emt 0:00:35]} 39. Bxe6 {[%emt 0:01:10] Das Läuferpaar ist gut.} Qxf4 {[%emt 0:00:21] ...Rae7 wäre nun fies.} 40. Bc4 {[%emt 0:00:00]} (40. Bxa5 $2 Rxe6 41. Rxe6 Nxe6 42. Qxf4 Nxf4 $19) 40... Rxe3 {[%emt 0:00:00]} 41. Rxe3 $40 {[%emt 0:01:00][%mdl 128] Weiss droht Re8+ und Matt. Schwarz muss sich nun genau verteidigen.} Bf8 $2 {[%emt 0:07:42][%mdl 8192] Danach kann Schwarz die Partie nicht mehr halten.} (41... Bh6 $14 42. Re8+ Kg7 43. Qxf4 (43. Rg8+ Kf6 $11) 43... Bxf4) 42. Re8 $1 $18 {[%emt 0:00:20] Schwarz ist schwach auf den weissen Feldern} (42. Bxa5 $2 Rxa5 43. g3 Qc7 $19) 42... Qd6 {[%emt 0:03:23]} 43. Qh6 {[%emt 0:00:05]} Rg7 {[%emt 0:01:34] [#]} 44. Qf4 $3 {[%emt 0:00:05][%mdl 512]} Qf6 {[%emt 0:05:15]} (44... Rd7 45. Qxd6) 45. Qb8 {[%emt 0:00:09]} (45. Qe5 $142 Rf7 46. Qxc5 (46. Bxf7 Qxe5 47. Rxe5 Kg7 $18) 46... Kg7 47. Rxf8 (47. Qxd4 Qxd4 48. Bxd4+ Kh6 $18) (47. Qxa5 Rd7 $18) 47... Rxf8 48. Bxd4 g5 49. Bxf6+ Rxf6 50. Qe7+ (50. Qxa5 Kg6 $18) 50... Kg6 51. g4 (51. Qe8+ Kh6 52. Bf7 g4 53. Qf8+ Kg5 54. Qe7 h5 55. g3 h4 56. Qe3+ f4)) 45... Rg8 {[%emt 0:00:06] Weiß steht klar auf Gewinn.} 46. Bxg8 {[%emt 0:02:05]} (46. Qc7 $142) 46... Kxg8 {[%emt 0:00:02]} 47. Bd2 {[%emt 0:05:21][%cal Od2h6] jetzt Bh6! und aus.} Nc6 {[%emt 0:02:39]} (47... f4 $142 48. Qxf4 Qxf4 49. Bxf4 Kf7) 48. Qa8 {[%emt 0:00:09]} (48. Qb3+ $142 Kg7 49. Qb7+ Qe7 50. Rxe7+ Nxe7 51. Bxa5) 48... Qd6 {[%emt 0:04:45] [#]} 49. Rxf8+ $1 {[%emt 0:00:11][%mdl 512] Gewichteter Fehlerwert: Weiß=0.38/Schwarz=0.43.  Verlustzug:     	---       	Schwarz=1     Fehler:       	Weiß=2     	Schwarz=5     Ungenau:       	Weiß=5     	Schwarz=5     OK:         	Weiß=13    	Schwarz=7     Bester:       	Weiß=2     	---        Stark:        	Weiß=1     	---} 1-0

[Event "Austrian Bundesliga 2023-24"]
[Site "Austria"]
[Date "2024.03.23"]
[Round "10.5"]
[White "Genser, Harald"]
[Black "Balint, Peter"]
[Result "1-0"]
[ECO "A45"]
[WhiteElo "2263"]
[BlackElo "2345"]
[Annotator "RC"]
[PlyCount "51"]
[EventDate "2023.10.21"]
[EventType "team-tourn"]
[EventCountry "AUT"]
[SourceTitle "playchess.com"]
[Source "ChessBase"]
[SourceQuality "1"]
[TimeControl "40/5400+30:1800+30"]

1. d4 {[%emt 0:00:03]} Nf6 {[%emt 0:00:04]} 2. Bf4 {[%emt 0:00:23]} g6 {[%emt 0:00:11]} 3. Nc3 {[%emt 0:00:49]} d5 {[%emt 0:00:04]} 4. e3 {[%emt 0:00:48]} Bg7 {[%emt 0:00:07]} 5. h4 {[%emt 0:01:23]} h5 {[%emt 0:00:47]} 6. Nf3 {[%emt 0:02:12]} O-O {[%emt 0:01:01]} 7. Qd2 {[%emt 0:02:49]} c5 {[%emt 0:01:25]} 8. dxc5 {[%emt 0:06:10]} Nbd7 {[%emt 0:20:26]} 9. O-O-O {[%emt 0:07:33]} Nxc5 {[%emt 0:03:16]} 10. Ng5 {[%emt 0:13:35]} Qb6 {[%emt 0:03:27]} 11. f3 {[%emt 0:09:09]} Bf5 {[%emt 0:03:12]} 12. Be5 {[%emt 0:11:55]} Rac8 {[%emt 0:09:48]} 13. Qd4 {[%emt 0:02:33]} Rfd8 {[%emt 0:05:37]} 14. Be2 {[%emt 0:05:36]} Ne8 {[%emt 0:14:52]} 15. Bxg7 {[%emt 0:03:40]} Nxg7 {[%emt 0:00:44]} 16. g4 {[%emt 0:02:23]} e5 {[%emt 0:03:39]} 17. Qxe5 {[%emt 0:12:24]} Bxc2 {[%emt 0:02:47]} 18. Rxd5 {[%emt 0:03:31]} f6 {[%emt 0:03:33]} 19. Rxd8+ {[%emt 0:03:14]} Rxd8 {[%emt 0:00:39]} 20. Bc4+ {[%emt 0:02:01]} Kh8 {[%emt 0:00:10]} 21. Nf7+ {[%emt 0:00:35]} Kh7 {[%emt 0:00:08]} 22. Qf4 {[%emt 0:01:14]} g5 {[%emt 0:08:25]} 23. hxg5 {[%emt 0:00:41]} Nce6 {[%emt 0:00:29]} 24. Bxe6 {[%emt 0:01:34]} Nxe6 {[%emt 0:00:41]} 25. Rxh5+ {[%emt 0:00:48]} Kg8 {[%emt 0:00:07]} 26. Rh8+ {[%emt 0:00:32]} 1-0

[Event "Austrian Bundesliga 2023-24"]
[Site "Austria"]
[Date "2024.03.23"]
[Round "10.6"]
[White "Steindl, Johannes"]
[Black "Hartl, Daniel"]
[Result "1-0"]
[ECO "D17"]
[WhiteElo "2302"]
[BlackElo "2248"]
[Annotator "RC"]
[PlyCount "95"]
[EventDate "2023.10.21"]
[EventType "team-tourn"]
[EventCountry "AUT"]
[SourceTitle "playchess.com"]
[Source "ChessBase"]
[SourceQuality "1"]
[TimeControl "40/5400+30:1800+30"]

1. d4 {[%emt 0:00:03]} d5 {[%emt 0:00:06]} 2. c4 {[%emt 0:00:05]} c6 {[%emt 0:00:04]} 3. Nf3 {[%emt 0:00:10]} Nf6 {[%emt 0:00:06]} 4. Nc3 {[%emt 0:00:05]} dxc4 {[%emt 0:00:13]} 5. a4 {[%emt 0:00:11]} Bf5 {[%emt 0:00:09]} 6. Ne5 {[%emt 0:00:08]} Nbd7 {[%emt 0:00:17]} 7. Nxc4 {[%emt 0:00:06]} Nb6 {[%emt 0:00:08]} 8. Ne5 {[%emt 0:00:09]} a5 {[%emt 0:00:06]} 9. h4 {[%emt 0:00:25]} h6 {[%emt 0:00:13]} 10. f3 {[%emt 0:00:03]} Nfd7 {[%emt 0:00:15]} 11. e4 {[%emt 0:00:58]} Bh7 {[%emt 0:05:43]} 12. Be3 {[%emt 0:00:05]} e6 {[%emt 0:02:14]} 13. Nd3 {[%emt 0:00:06]} Bd6 {[%emt 0:03:36]} 14. Qb3 {[%emt 0:00:16]} Bg3+ {[%emt 0:01:47]} 15. Ke2 {[%emt 0:00:05]} O-O {[%emt 0:10:37]} 16. f4 {[%emt 0:00:24]} Bxh4 {[%emt 0:01:12]} 17. g4 {[%emt 0:00:04]} Be7 {[%emt 0:13:39]} 18. Bg2 {[%emt 0:00:23]} Nc8 {[%emt 0:08:21]} 19. g5 {[%emt 0:05:32]} Qb6 {[%emt 0:07:16]} 20. Qxb6 {[%emt 0:04:03]} Ncxb6 {[%emt 0:00:19]} 21. gxh6 {[%emt 0:00:04]} g6 {[%emt 0:00:07]} 22. b3 {[%emt 0:05:27]} Rfe8 {[%emt 0:06:12]} 23. Rad1 {[%emt 0:03:27]} Rac8 {[%emt 0:02:40]} 24. Nc5 {[%emt 0:07:39]} Rb8 {[%emt 0:06:33]} 25. Bh3 {[%emt 0:03:42]} Bf8 {[%emt 0:05:23]} 26. Kf3 {[%emt 0:04:20]} f5 {[%emt 0:04:18]} 27. Nxd7 {[%emt 0:11:23]} Nxd7 {[%emt 0:00:05]} 28. d5 {[%emt 0:00:03]} cxd5 {[%emt 0:09:23]} 29. exd5 {[%emt 0:00:14]} e5 {[%emt 0:00:05]} 30. Bf1 {[%emt 0:01:52]} e4+ {[%emt 0:01:47]} 31. Kg3 {[%emt 0:01:19]} Bc5 {[%emt 0:02:09]} 32. Bxc5 Nxc5 {[%emt 0:00:05]} 33. Bc4 {[%emt 0:02:34]} Rbd8 {[%emt 0:00:52]} 34. Kh4 {[%emt 0:08:57]} Kf7 {[%emt 0:03:54]} 35. Kg5 {[%emt 0:04:46]} e3 {[%emt 0:01:14]} 36. Rh3 {[%emt 0:02:01]} Rd6 {[%emt 0:00:11]} 37. Re1 {[%emt 0:00:58]} e2 {[%emt 0:01:50]} 38. Rxe2 {[%emt 0:00:39]} Rxe2 {[%emt 0:00:12]} 39. Bxe2 {[%emt 0:00:06]} Kf8 {[%emt 0:02:27]} 40. Bc4 {[%emt 0:00:00]} Rb6 {[%emt 0:00:00]} 41. Re3 {[%emt 0:06:40]} Bg8 {[%emt 0:00:52]} 42. Bb5 {[%emt 0:00:46]} Nxb3 {[%emt 0:02:06]} 43. Re8+ {[%emt 0:02:16]} Kf7 {[%emt 0:01:01]} 44. Rd8 {[%emt 0:00:26]} Nd4 {[%emt 0:02:56]} 45. Rd7+ {[%emt 0:00:06]} Kf8 {[%emt 0:00:05]} 46. d6 {[%emt 0:00:20]} Be6 {[%emt 0:05:06]} 47. Rd8+ {[%emt 0:00:32]} Kf7 {[%emt 0:00:09]} 48. Be8+ {[%emt 0:00:05]} 1-0

[Event "Austrian Bundesliga 2023-24"]
[Site "Austria"]
[Date "2024.03.23"]
[Round "10.7"]
[White "Mamedyarov, Shakhriyar"]
[Black "Markus, Robert"]
[Result "1-0"]
[ECO "E68"]
[WhiteElo "2734"]
[BlackElo "2595"]
[Annotator "TA"]
[PlyCount "67"]
[EventDate "2023.10.21"]
[EventType "team-tourn"]
[EventCountry "AUT"]
[SourceTitle "playchess.com"]
[Source "ChessBase"]
[SourceQuality "1"]
[TimeControl "40/5400+30:1800+30"]

{[%evp 21,67,29,39,0,0,-12,-14,-19,-25,-14,-18,-26,81,0,0,0,70,70,75,73,73,84,73,81,68,67,78,39,81,58,110,112,122,118,142,138,183,188,184,180,231,233,290,281,283,283,335,327]} 1. d4 {[%emt 0:00:04]} Nf6 {[%emt 0:00:07]} 2. c4 {[%emt 0:00:04]} d6 {[%emt 0:00:06]} 3. Nf3 {[%emt 0:00:14]} Nbd7 {[%emt 0:00:08]} 4. Nc3 {[%emt 0:00:08]} g6 {[%emt 0:00:08]} 5. g3 {[%emt 0:00:12]} Bg7 {[%emt 0:00:07]} 6. Bg2 {[%emt 0:00:03]} O-O {[%emt 0:00:10]} 7. O-O {[%emt 0:00:03]} e5 {[%emt 0:00:07]} 8. e4 {[%emt 0:00:03]} exd4 {[%emt 0:00:08]} 9. Nxd4 {[%emt 0:00:05]} Re8 {[%emt 0:00:07]} 10. h3 {[%emt 0:00:33]} Nc5 {[%emt 0:00:07][%cal Bd7c5,Bc5e6,Be6d4][%mdl 32]} 11. Re1 {[%emt 0:00:14]} a6 {[%emt 0:00:06]} 12. Nb3 {[%emt 0:02:50]} Nfd7 {[%emt 0:01:18]} 13. Bf4 {[%emt 0:09:47]} Ne6 {[%emt 0:07:33]} 14. Be3 {[%emt 0:01:50] The position is equal.} Ne5 {[%emt 0:00:31]} 15. Qe2 {[%emt 0:04:19] [#]} b5 $1 {[%emt 0:02:48]} 16. c5 {[%emt 0:05:44]} dxc5 {[%emt 0:14:51] [#]} (16... a5 $11) 17. Nxc5 {[%emt 0:01:18]} (17. Rad1 $1 $16 {[%cal Rd1d8]} Qe7 18. f4) 17... Nd4 $11 {[%emt 0:13:12]} 18. Qd1 {[%emt 0:01:05]} Nc4 {[%emt 0:00:06] [#]} ({Black should play} 18... Ne6 $1 $11) 19. e5 $1 $14 {[%emt 0:00:56]} Nxe3 {[%emt 0:01:07]} 20. fxe3 {[%emt 0:10:14]} Ne6 {[%emt 0:01:46]} 21. Qxd8 {[%emt 0:00:16]} Rxd8 {[%emt 0:00:06]} 22. Bxa8 {[%emt 0:00:03]} Nxc5 {[%emt 0:00:08]} 23. Red1 {[%emt 0:00:02]} Rf8 {[%emt 0:05:01]} 24. Rac1 {[%emt 0:10:44] aiming for Nd5.} Bxe5 {[%emt 0:24:10]} 25. Bg2 $36 {[%emt 0:11:37][%cal Oc3b5][%mdl 2048] White has good play.} Bd6 {[%emt 0:04:07]} (25... b4 $14 26. Nd5 Na4) 26. Nd5 $16 {[%emt 0:02:09]} Ne6 {[%emt 0:01:01]} 27. Kf2 {[%emt 0:00:22] White is more active.} Kg7 {[%emt 0:00:19] [#]} 28. Nb6 $1 {[%emt 0:06:15][%mdl 512] Threatens to win with Nxc8.} Be5 {[%emt 0:05:35]} (28... Bc5 29. Nxc8) 29. Nxc8 {[%emt 0:02:44]} Rxc8 {[%emt 0:00:05]} 30. Rc6 {[%emt 0:02:16]} Rb8 {[%emt 0:09:21] [#]} (30... b4 $142 31. Rd5 (31. Rxa6 Bxb2 32. Rc6 Be5 $16) 31... Kf6) 31. b4 $1 $18 {[%emt 0:02:05]} (31. Rxa6 Bxb2 32. Rd5 b4) 31... Rb6 {[%emt 0:03:20]} 32. Rxb6 {[%emt 0:01:33] White has a decisive advantage.} cxb6 {[%emt 0:00:06]} 33. Rd7 {[%emt 0:00:07]} Kf6 {[%emt 0:05:05]} 34. Bd5 {[%emt 0:01:35] Weighted Error Value: White=0.09 (flawless) /Black=0.32.  Mistake:       	White=1     	Black=4      Inaccurate:     	White=1     	Black=2      OK:         	White=14    	Black=6      Best:        	---       	Black=2      Brilliant:      	White=1     	Black=1} 1-0

[Event "Austrian Bundesliga 2023-24"]
[Site "Austria"]
[Date "2024.03.23"]
[Round "10.8"]
[White "Horvath, Dominik"]
[Black "Vachier-Lagrave, Maxime"]
[Result "0-1"]
[ECO "B33"]
[WhiteElo "2534"]
[BlackElo "2728"]
[Annotator "TA"]
[PlyCount "62"]
[EventDate "2023.10.21"]
[EventType "team-tourn"]
[EventCountry "AUT"]
[SourceTitle "playchess.com"]
[Source "ChessBase"]
[SourceQuality "1"]
[TimeControl "40/5400+30:1800+30"]

{[%evp 20,62,18,11,14,3,13,0,0,0,11,0,0,-27,0,-71,-42,-32,3,-13,-18,-21,0,-18,-14,-38,-16,-33,-6,-69,-68,-192,-170,-283,-274,-398,-399,-406,-427,-404,-435,-433,-426,-402,-412]} 1. e4 {[%emt 0:00:12]} c5 {[%emt 0:00:00]} 2. Nf3 {[%emt 0:00:00][%cal Bg1f3,Bf3d4,Bd4b5,Bb5a3,Ba3c2][%mdl 32]} Nc6 {[%emt 0:00:00]} 3. d4 {[%emt 0:00:00]} cxd4 {[%emt 0:00:00]} 4. Nxd4 {[%emt 0:00:01]} Nf6 {[%emt 0:00:14]} 5. Nc3 {[%emt 0:00:05]} e5 {[%emt 0:00:02]} 6. Ndb5 {[%emt 0:00:07]} d6 {[%emt 0:00:05]} 7. Bg5 {[%emt 0:00:36]} a6 {[%emt 0:00:12]} 8. Na3 {[%emt 0:00:05]} b5 {[%emt 0:00:03][%cal Bb7b5,Bb5b4][%mdl 32]} 9. Nd5 {[%emt 0:01:07]} Be7 {[%emt 0:00:03]} 10. Bxf6 {[%emt 0:00:04]} Bxf6 {[%emt 0:00:03]} 11. c4 {[%emt 0:00:08]} b4 {[%emt 0:00:05]} 12. Nc2 {[%emt 0:00:05]} O-O {[%emt 0:00:40]} 13. h4 {[%emt 0:00:41]} a5 {[%emt 0:03:50] The position is equal.} 14. g3 {[%emt 0:01:01]} Be6 {[%emt 0:02:57]} 15. Qd3 {[%emt 0:00:28]} a4 {[%emt 0:03:20][%cal Ob4b3]} 16. Nce3 {[%emt 0:24:00]} b3 {[%emt 0:02:22]} 17. a3 {[%emt 0:07:10]} (17. Be2 $11 {keeps the balance.}) 17... Qa5+ {[%emt 0:00:15]} 18. Qd2 {[%emt 0:02:32]} Qxd2+ {[%emt 0:07:35]} 19. Kxd2 {[%emt 0:00:05]} Bd8 {[%emt 0:00:06]} 20. Rd1 {[%emt 0:01:11]} Rb8 {[%emt 0:00:40]} 21. Kc1 {[%emt 0:02:13]} Nd4 {[%emt 0:00:19]} 22. f4 {[%emt 0:13:55]} f5 {[%emt 0:05:42]} 23. exf5 {[%emt 0:15:24]} (23. fxe5 {looks sharper.} dxe5 24. exf5 Nxf5 25. Bh3) 23... Bxd5 {[%emt 0:07:23]} 24. cxd5 {[%emt 0:03:48]} ({White should try} 24. Nxd5 $11 Nxf5 (24... Rxf5 25. Bh3 $16) 25. Rh3) 24... exf4 $15 {[%emt 0:04:22] Black is more active.} 25. Rxd4 {[%emt 0:03:07] [#] Loses the game.} (25. gxf4 $15 Bb6 (25... Nxf5 26. Nxf5 Rxf5 27. Rd4 $11) 26. Nc4 Nxf5 27. Nxb6 Rxb6 28. Kd2) 25... Bb6 $1 $19 {[%emt 0:00:18]} ({But not} 25... fxe3 26. Bd3) 26. Re4 {[%emt 0:05:18]} (26. Rxa4 $142 Bxe3+ 27. Kb1 fxg3 28. Bh3) 26... Bxe3+ {[%emt 0:01:52]} 27. Kb1 {[%emt 0:00:12]} (27. Kd1 {was worth a try.} Rbe8 (27... Rxf5 $2 28. Bc4 $19) 28. Rxa4 fxg3 (28... Rxf5 $2 29. gxf4 Rxd5+ 30. Ke1 $19) 29. Bh3) 27... Rbe8 {[%emt 0:02:40]} ({Less strong is} 27... Rxf5 28. gxf4 Bxf4 29. Rxa4 $17) 28. Rxe8 {[%emt 0:08:11]} Rxe8 {[%emt 0:00:06]} 29. gxf4 {[%emt 0:00:06] [#]} Bg1 $1 {[%emt 0:00:27][%mdl 512]} 30. Be2 {[%emt 0:00:18]} Rxe2 {[%emt 0:00:06]} 31. Rxg1 {[%emt 0:00:02]} Kf7 {[%emt 0:00:15] Weighted Error Value: White=0.36/Black=0.07 (flawless) .  Mistake:       	White=5     	---        Inaccurate:     	White=1     	Black=3      OK:         	White=6     	Black=8      Best:        	White=1     	Black=3      Strong:       	---       	Black=1      Brilliant:      	---       	Black=1} 0-1